[Event "Titled Tuesday Blitz July 25 Early 2023"]
[White "Sriniaiyer, Sudarshan"]
[Black "Spichkin, Alexander"]
[WhiteFideId "30937213"]
[BlackFideId "4144074"]
[WhiteElo "2358"]
[BlackElo "2476"]
[Result "0-1"]
[Round "6"]
[TimeControl "180+2"]
[Date "2023.07.25"]
[WhiteClock "0:00:11"]
[BlackClock "0:00:56"]
[Board "149"]

1. c4 {[%clk 0:03:00]}  f5 {[%clk 0:02:59]} 2. g3 {[%clk 0:02:59]}  Nf6 {[%clk 0:03:00]} 3. Bg2 {[%clk 0:03:00]}  d6 {[%clk 0:03:00]} 4. d4 {[%clk 0:02:59]}  e6 {[%clk 0:03:01]} 5. Nf3 {[%clk 0:02:55]}  Be7 {[%clk 0:03:01]} 6. O-O {[%clk 0:02:55]}  O-O {[%clk 0:03:01]} 7. b3 {[%clk 0:02:54]}  a5 {[%clk 0:03:02]} 8. Nc3 {[%clk 0:02:53]}  Ne4 {[%clk 0:03:02]} 9. Bb2 {[%clk 0:02:53]}  Nxc3 {[%clk 0:03:01]} 10. Bxc3 {[%clk 0:02:53]}  c6 {[%clk 0:03:02]} 11. Qc2 {[%clk 0:02:48]}  Qe8 {[%clk 0:03:02]} 12. e4 {[%clk 0:02:47]}  f4 {[%clk 0:03:02]} 13. gxf4 {[%clk 0:02:03]}  Rxf4 {[%clk 0:02:58]} 14. Kh1 {[%clk 0:02:01]}  Qh5 {[%clk 0:02:58]} 15. Qd3 {[%clk 0:01:59]}  Nd7 {[%clk 0:02:08]} 16. Bd2 {[%clk 0:01:53]}  Rf8 {[%clk 0:02:04]} 17. Rg1 {[%clk 0:01:51]}  e5 {[%clk 0:01:58]} 18. Qe3 {[%clk 0:01:23]}  Nf6 {[%clk 0:01:53]} 19. Bf1 {[%clk 0:00:24]}  Ng4 {[%clk 0:01:44]} 20. Rxg4 {[%clk 0:00:24]}  Bxg4 {[%clk 0:01:44]} 21. Ng1 {[%clk 0:00:25]}  Rf4 {[%clk 0:01:37]} 22. Bg2 {[%clk 0:00:21]}  Raf8 {[%clk 0:01:28]} 23. f3 {[%clk 0:00:19]}  Bd7 {[%clk 0:01:22]} 24. Qc3 {[%clk 0:00:19]}  Rh4 {[%clk 0:01:18]} 25. h3 {[%clk 0:00:20]}  Bxh3 {[%clk 0:01:10]} 26. Nxh3 {[%clk 0:00:20]}  Rxh3+ {[%clk 0:01:09]} 27. Kg1 {[%clk 0:00:19]}  Rhxf3 {[%clk 0:01:07]} 28. Qc2 {[%clk 0:00:17]}  Rf2 {[%clk 0:01:02]} 29. Rf1 {[%clk 0:00:11]}  Qe2 {[%clk 0:00:56]} 0-1


[Site "https://www.chess.com"]

[Event "Titled Tuesday Blitz July 25 Early 2023"]
[White "Smiechu"]
[Black "MateoReyes"]
[WhiteElo "2357"]
[BlackElo "2476"]
[Result "0-1"]
[Round "6"]
[TimeControl "180+2"]
[Date "2023.07.25"]
[WhiteClock "0:00:04"]
[BlackClock "0:00:50"]
[Board "150"]

1. e4 {[%clk 0:02:52]}  c5 {[%clk 0:02:58]} 2. Nf3 {[%clk 0:02:51]}  d6 {[%clk 0:02:57]} 3. d4 {[%clk 0:02:52]}  cxd4 {[%clk 0:02:58]} 4. Nxd4 {[%clk 0:02:52]}  Nf6 {[%clk 0:02:58]} 5. Nc3 {[%clk 0:02:53]}  a6 {[%clk 0:02:57]} 6. Be3 {[%clk 0:02:53]}  e5 {[%clk 0:02:56]} 7. Nb3 {[%clk 0:02:52]}  Be6 {[%clk 0:02:55]} 8. Qd2 {[%clk 0:02:53]}  Nbd7 {[%clk 0:02:54]} 9. O-O-O {[%clk 0:02:53]}  Rc8 {[%clk 0:02:53]} 10. f4 {[%clk 0:02:53]}  exf4 {[%clk 0:02:48]} 11. Bxf4 {[%clk 0:02:52]}  Ne5 {[%clk 0:02:48]} 12. h3 {[%clk 0:02:39]}  Qc7 {[%clk 0:02:48]} 13. g4 {[%clk 0:02:33]}  Be7 {[%clk 0:02:47]} 14. Be2 {[%clk 0:02:27]}  O-O {[%clk 0:02:45]} 15. g5 {[%clk 0:02:27]}  Nfd7 {[%clk 0:02:45]} 16. h4 {[%clk 0:02:21]}  Nb6 {[%clk 0:02:43]} 17. Nd5 {[%clk 0:02:17]}  Bxd5 {[%clk 0:02:40]} 18. exd5 {[%clk 0:02:17]}  Nxd5 {[%clk 0:02:38]} 19. Bg3 {[%clk 0:01:42]}  Ne3 {[%clk 0:02:33]} 20. c3 {[%clk 0:01:36]}  Nxd1 {[%clk 0:02:30]} 21. Bxd1 {[%clk 0:01:33]}  b5 {[%clk 0:02:29]} 22. Kb1 {[%clk 0:01:26]}  a5 {[%clk 0:02:27]} 23. Nd4 {[%clk 0:01:16]}  b4 {[%clk 0:02:26]} 24. cxb4 {[%clk 0:01:15]}  axb4 {[%clk 0:02:24]} 25. Nf5 {[%clk 0:01:15]}  Rfe8 {[%clk 0:02:22]} 26. Ba4 {[%clk 0:01:14]}  Qb7 {[%clk 0:02:17]} 27. Re1 {[%clk 0:01:09]}  Red8 {[%clk 0:02:10]} 28. Bb3 {[%clk 0:00:58]}  Bf8 {[%clk 0:02:04]} 29. Rf1 {[%clk 0:00:52]}  Qe4+ {[%clk 0:02:02]} 30. Ka1 {[%clk 0:00:51]}  Nf3 {[%clk 0:01:50]} 31. Bxf7+ {[%clk 0:00:29]}  Kxf7 {[%clk 0:01:45]} 32. Nd4 {[%clk 0:00:12]}  Kg8 {[%clk 0:01:36]} 33. Nxf3 {[%clk 0:00:12]}  Kh8 {[%clk 0:01:30]} 34. h5 {[%clk 0:00:10]}  Rc2 {[%clk 0:01:28]} 35. Qd1 {[%clk 0:00:09]}  Rdc8 {[%clk 0:01:27]} 36. Qb1 {[%clk 0:00:09]}  b3 {[%clk 0:01:18]} 37. a3 {[%clk 0:00:08]}  Qe2 {[%clk 0:01:08]} 38. Rf2 {[%clk 0:00:05]}  Qd3 {[%clk 0:00:56]} 39. Ne1 {[%clk 0:00:04]}  Qxg3 {[%clk 0:00:54]} 40. Rxc2 {[%clk 0:00:04]}  bxc2 {[%clk 0:00:53]} 41. Nxc2 {[%clk 0:00:04]}  Qf4 {[%clk 0:00:50]} 0-1


[Site "https://www.chess.com"]

[Event "Titled Tuesday Blitz July 25 Early 2023"]
[White "Papayan, Oleg"]
[Black "Andrews, Todd"]
[WhiteFideId "4193911"]
[BlackFideId "2012456"]
[WhiteElo "2472"]
[BlackElo "2352"]
[Result "1/2-1/2"]
[Round "6"]
[TimeControl "180+2"]
[Date "2023.07.25"]
[WhiteClock "0:00:05"]
[BlackClock "0:00:12"]
[Board "151"]

1. c4 {[%clk 0:02:59]}  e5 {[%clk 0:02:59]} 2. Nc3 {[%clk 0:02:58]}  Nc6 {[%clk 0:03:00]} 3. Nf3 {[%clk 0:02:59]}  Nf6 {[%clk 0:02:59]} 4. g3 {[%clk 0:02:59]}  d5 {[%clk 0:02:57]} 5. cxd5 {[%clk 0:02:59]}  Nxd5 {[%clk 0:02:58]} 6. Bg2 {[%clk 0:02:59]}  Nb6 {[%clk 0:02:58]} 7. O-O {[%clk 0:02:59]}  Be7 {[%clk 0:02:59]} 8. d3 {[%clk 0:02:59]}  g5 {[%clk 0:02:59]} 9. a3 {[%clk 0:02:57]}  a5 {[%clk 0:02:55]} 10. Be3 {[%clk 0:02:41]}  g4 {[%clk 0:02:50]} 11. Nd2 {[%clk 0:02:41]}  h5 {[%clk 0:02:48]} 12. Rc1 {[%clk 0:02:40]}  h4 {[%clk 0:02:39]} 13. Nb5 {[%clk 0:02:31]}  Be6 {[%clk 0:02:12]} 14. Nc4 {[%clk 0:02:18]}  Nd5 {[%clk 0:02:08]} 15. Qd2 {[%clk 0:01:20]}  Qd7 {[%clk 0:01:47]} 16. Bg5 {[%clk 0:00:50]}  hxg3 {[%clk 0:01:32]} 17. hxg3 {[%clk 0:00:39]}  f6 {[%clk 0:01:27]} 18. Be3 {[%clk 0:00:38]}  Kf7 {[%clk 0:00:59]} 19. f3 {[%clk 0:00:35]}  Rag8 {[%clk 0:00:54]} 20. Kf2 {[%clk 0:00:36]}  gxf3 {[%clk 0:00:49]} 21. Bxf3 {[%clk 0:00:36]}  Rh2+ {[%clk 0:00:47]} 22. Kg1 {[%clk 0:00:29]}  Rh3 {[%clk 0:00:38]} 23. Bf2 {[%clk 0:00:28]}  Bd8 {[%clk 0:00:27]} 24. Bg2 {[%clk 0:00:27]}  Rhxg3 {[%clk 0:00:27]} 25. Bxg3 {[%clk 0:00:28]}  Rxg3 {[%clk 0:00:27]} 26. Qh6 {[%clk 0:00:23]}  Nf4 {[%clk 0:00:24]} 27. Rf2 {[%clk 0:00:05]}  Bh3 {[%clk 0:00:20]} 28. Ne3 {[%clk 0:00:03]}  Nd4 {[%clk 0:00:16]} 29. Qh4 {[%clk 0:00:02]}  Ndxe2+ {[%clk 0:00:15]} 30. Kh2 {[%clk 0:00:03]}  Bxg2 {[%clk 0:00:14]} 31. Nxg2 {[%clk 0:00:02]}  Rxg2+ {[%clk 0:00:14]} 32. Rxg2 {[%clk 0:00:02]}  Nxg2 {[%clk 0:00:15]} 33. Qh5+ {[%clk 0:00:03]}  Kf8 {[%clk 0:00:14]} 34. Qxe2 {[%clk 0:00:04]}  Nf4 {[%clk 0:00:14]} 35. Qe4 {[%clk 0:00:01]}  Qh3+ {[%clk 0:00:14]} 36. Kg1 {[%clk 0:00:01]}  Qg3+ {[%clk 0:00:14]} 37. Kf1 {[%clk 0:00:02]}  Be7 {[%clk 0:00:14]} 38. Rc2 {[%clk 0:00:01]}  Qxd3+ {[%clk 0:00:14]} 39. Qxd3 {[%clk 0:00:01]}  Nxd3 {[%clk 0:00:15]} 40. Nxc7 {[%clk 0:00:02]}  e4 {[%clk 0:00:14]} 41. Ne6+ {[%clk 0:00:02]}  Kf7 {[%clk 0:00:14]} 42. Nd4 {[%clk 0:00:03]}  Kg6 {[%clk 0:00:14]} 43. Rc7 {[%clk 0:00:03]}  Bd6 {[%clk 0:00:14]} 44. Rxb7 {[%clk 0:00:03]}  Be5 {[%clk 0:00:14]} 45. Ne2 {[%clk 0:00:03]}  Nxb2 {[%clk 0:00:14]} 46. Rb5 {[%clk 0:00:03]}  a4 {[%clk 0:00:14]} 47. Nf4+ {[%clk 0:00:03]}  Kf5 {[%clk 0:00:13]} 48. Ne2 {[%clk 0:00:04]}  Kg4 {[%clk 0:00:13]} 49. Rb4 {[%clk 0:00:04]}  Kf3 {[%clk 0:00:13]} 50. Ng1+ {[%clk 0:00:04]}  Ke3 {[%clk 0:00:13]} 51. Ne2 {[%clk 0:00:04]}  f5 {[%clk 0:00:13]} 52. Rb5 {[%clk 0:00:05]}  f4 {[%clk 0:00:11]} 53. Rxe5 {[%clk 0:00:04]}  f3 {[%clk 0:00:12]} 54. Ng1 {[%clk 0:00:05]}  Kd4 {[%clk 0:00:12]} 55. Re8 {[%clk 0:00:05]}  Nc4 {[%clk 0:00:12]} 56. Rd8+ {[%clk 0:00:04]}  Kc3 {[%clk 0:00:12]} 57. Ra8 {[%clk 0:00:05]}  Kb3 {[%clk 0:00:12]} 58. Re8 {[%clk 0:00:03]}  Kxa3 {[%clk 0:00:11]} 59. Kf2 {[%clk 0:00:02]}  e3+ {[%clk 0:00:11]} 60. Kxf3 {[%clk 0:00:03]}  Kb3 {[%clk 0:00:11]} 61. Rb8+ {[%clk 0:00:03]}  Kc3 {[%clk 0:00:12]} 62. Ne2+ {[%clk 0:00:03]}  Kc2 {[%clk 0:00:11]} 63. Ra8 {[%clk 0:00:04]}  a3 {[%clk 0:00:11]} 64. Ke4 {[%clk 0:00:04]}  Kb2 {[%clk 0:00:11]} 65. Kd3 {[%clk 0:00:04]}  a2 {[%clk 0:00:11]} 66. Kxc4 {[%clk 0:00:03]}  a1=Q {[%clk 0:00:11]} 67. Rxa1 {[%clk 0:00:04]}  Kxa1 {[%clk 0:00:12]} 68. Kd3 {[%clk 0:00:04]}  Kb2 {[%clk 0:00:12]} 69. Kxe3 {[%clk 0:00:05]} 1/2-1/2


[Site "https://www.chess.com"]

[Event "Titled Tuesday Blitz July 25 Early 2023"]
[White "Rodriguez Santiago, Jaime"]
[Black "Kopczynski, Michal"]
[WhiteFideId "3100898"]
[BlackFideId "1124200"]
[WhiteElo "2345"]
[BlackElo "2467"]
[Result "1-0"]
[Round "6"]
[TimeControl "180+2"]
[Date "2023.07.25"]
[WhiteClock "0:00:11"]
[BlackClock "0:00:01"]
[Board "153"]

1. c4 {[%clk 0:03:00]}  g6 {[%clk 0:02:59]} 2. g3 {[%clk 0:02:58]}  Bg7 {[%clk 0:02:59]} 3. Nc3 {[%clk 0:02:58]}  d6 {[%clk 0:02:59]} 4. Bg2 {[%clk 0:02:58]}  e5 {[%clk 0:02:59]} 5. e4 {[%clk 0:02:56]}  f5 {[%clk 0:02:59]} 6. d3 {[%clk 0:02:55]}  Nf6 {[%clk 0:02:59]} 7. Nge2 {[%clk 0:02:55]}  O-O {[%clk 0:02:58]} 8. O-O {[%clk 0:02:54]}  Nc6 {[%clk 0:02:58]} 9. Nd5 {[%clk 0:02:54]}  fxe4 {[%clk 0:02:58]} 10. dxe4 {[%clk 0:02:51]}  Be6 {[%clk 0:02:56]} 11. Nec3 {[%clk 0:02:36]}  Qd7 {[%clk 0:02:55]} 12. Bg5 {[%clk 0:02:22]}  Rac8 {[%clk 0:02:44]} 13. Bxf6 {[%clk 0:02:11]}  Bxf6 {[%clk 0:02:44]} 14. Nxf6+ {[%clk 0:02:11]}  Rxf6 {[%clk 0:02:45]} 15. Nd5 {[%clk 0:02:11]}  Rf7 {[%clk 0:02:45]} 16. f4 {[%clk 0:02:04]}  Rcf8 {[%clk 0:02:40]} 17. b3 {[%clk 0:01:44]}  Bh3 {[%clk 0:02:31]} 18. f5 {[%clk 0:01:25]}  Bxg2 {[%clk 0:02:30]} 19. Kxg2 {[%clk 0:01:25]}  gxf5 {[%clk 0:02:28]} 20. exf5 {[%clk 0:01:24]}  Rxf5 {[%clk 0:02:25]} 21. Qg4+ {[%clk 0:01:15]}  Kh8 {[%clk 0:02:24]} 22. Ne3 {[%clk 0:01:04]}  h5 {[%clk 0:01:33]} 23. Rxf5 {[%clk 0:00:49]}  hxg4 {[%clk 0:01:31]} 24. Rxf8+ {[%clk 0:00:48]}  Kg7 {[%clk 0:01:31]} 25. Raf1 {[%clk 0:00:48]}  Nd4 {[%clk 0:01:24]} 26. R8f2 {[%clk 0:00:32]}  e4 {[%clk 0:01:16]} 27. Rf4 {[%clk 0:00:29]}  Nf3 {[%clk 0:00:37]} 28. Rxg4+ {[%clk 0:00:29]}  Kh7 {[%clk 0:00:38]} 29. Rd1 {[%clk 0:00:19]}  Qe6 {[%clk 0:00:24]} 30. Rd5 {[%clk 0:00:18]}  Ne5 {[%clk 0:00:20]} 31. Rxe4 {[%clk 0:00:17]}  Qf6 {[%clk 0:00:16]} 32. Rf4 {[%clk 0:00:16]}  Qg5 {[%clk 0:00:13]} 33. Rd2 {[%clk 0:00:14]}  Qg6 {[%clk 0:00:13]} 34. Rdf2 {[%clk 0:00:14]}  Qd3 {[%clk 0:00:08]} 35. Ng4 {[%clk 0:00:13]}  Ng6 {[%clk 0:00:04]} 36. Rf7+ {[%clk 0:00:12]}  Kh8 {[%clk 0:00:05]} 37. Nf6 {[%clk 0:00:11]}  Nh4+ {[%clk 0:00:03]} 38. gxh4 {[%clk 0:00:10]}  Qg6+ {[%clk 0:00:03]} 39. Ng4 {[%clk 0:00:10]}  Qxg4+ {[%clk 0:00:04]} 40. Kf1 {[%clk 0:00:11]}  Qd1+ {[%clk 0:00:04]} 41. Kg2 {[%clk 0:00:11]}  Qg4+ {[%clk 0:00:04]} 42. Kh1 {[%clk 0:00:08]}  Qe4+ {[%clk 0:00:04]} 43. R7f3 {[%clk 0:00:08]}  Qe1+ {[%clk 0:00:03]} 44. Kg2 {[%clk 0:00:08]}  Qe4 {[%clk 0:00:04]} 45. Kg3 {[%clk 0:00:07]}  Qe5+ {[%clk 0:00:04]} 46. Kh3 {[%clk 0:00:08]}  Qe6+ {[%clk 0:00:05]} 47. Rf5 {[%clk 0:00:08]}  Qe3+ {[%clk 0:00:04]} 48. Kg2 {[%clk 0:00:09]}  Qe4+ {[%clk 0:00:05]} 49. R2f3 {[%clk 0:00:09]}  Qe2+ {[%clk 0:00:05]} 50. Kg3 {[%clk 0:00:10]}  Qe4 {[%clk 0:00:05]} 51. h3 {[%clk 0:00:10]}  Kh7 {[%clk 0:00:05]} 52. Rf7+ {[%clk 0:00:10]}  Kh8 {[%clk 0:00:05]} 53. Rf8+ {[%clk 0:00:10]}  Kg7 {[%clk 0:00:05]} 54. R3f7+ {[%clk 0:00:11]}  Kg6 {[%clk 0:00:05]} 55. Rf6+ {[%clk 0:00:11]}  Kg7 {[%clk 0:00:05]} 56. Rf3 {[%clk 0:00:11]}  Qe5+ {[%clk 0:00:06]} 57. R8f4 {[%clk 0:00:12]}  d5 {[%clk 0:00:04]} 58. cxd5 {[%clk 0:00:11]}  Qxd5 {[%clk 0:00:05]} 59. Kg4 {[%clk 0:00:12]}  Qe6+ {[%clk 0:00:05]} 60. Rf5 {[%clk 0:00:12]}  Qe4+ {[%clk 0:00:05]} 61. R3f4 {[%clk 0:00:13]}  Qg2+ {[%clk 0:00:05]} 62. Kh5 {[%clk 0:00:11]}  Qxh3 {[%clk 0:00:05]} 63. Rg5+ {[%clk 0:00:11]}  Kh8 {[%clk 0:00:05]} 64. Rf8+ {[%clk 0:00:11]}  Kh7 {[%clk 0:00:05]} 65. Rf7+ {[%clk 0:00:11]}  Kh8 {[%clk 0:00:05]} 66. Rf6 {[%clk 0:00:12]}  Kh7 {[%clk 0:00:01]} 67. Rh6# {[%clk 0:00:11]} 1-0


[Site "https://www.chess.com"]

[Event "Titled Tuesday Blitz July 25 Early 2023"]
[White "Chitlange Sakshi"]
[Black "Peiris, T G M"]
[WhiteFideId "35002899"]
[BlackFideId "9901310"]
[WhiteElo "2466"]
[BlackElo "2346"]
[Result "0-1"]
[Round "6"]
[TimeControl "180+2"]
[Date "2023.07.25"]
[WhiteClock "0:00:03"]
[BlackClock "0:00:17"]
[Board "154"]

1. d4 {[%clk 0:03:00]}  e6 {[%clk 0:02:59]} 2. Nf3 {[%clk 0:03:01]}  f5 {[%clk 0:03:00]} 3. g3 {[%clk 0:02:59]}  Nf6 {[%clk 0:03:00]} 4. Bg2 {[%clk 0:03:00]}  Be7 {[%clk 0:03:01]} 5. O-O {[%clk 0:03:00]}  O-O {[%clk 0:03:02]} 6. c4 {[%clk 0:03:01]}  d6 {[%clk 0:03:03]} 7. Nc3 {[%clk 0:03:01]}  Nc6 {[%clk 0:03:02]} 8. Re1 {[%clk 0:03:01]}  e5 {[%clk 0:03:01]} 9. d5 {[%clk 0:02:54]}  Nb8 {[%clk 0:02:58]} 10. e4 {[%clk 0:02:55]}  a5 {[%clk 0:02:57]} 11. exf5 {[%clk 0:02:49]}  Bxf5 {[%clk 0:02:57]} 12. Ng5 {[%clk 0:02:50]}  Qd7 {[%clk 0:02:49]} 13. Ne6 {[%clk 0:02:43]}  Re8 {[%clk 0:02:27]} 14. Bg5 {[%clk 0:02:31]}  Na6 {[%clk 0:02:26]} 15. Qf3 {[%clk 0:02:12]}  Bg4 {[%clk 0:02:23]} 16. Qe3 {[%clk 0:02:12]}  Rab8 {[%clk 0:02:20]} 17. Bxf6 {[%clk 0:01:58]}  Bxf6 {[%clk 0:02:20]} 18. Ne4 {[%clk 0:01:58]}  Be7 {[%clk 0:02:09]} 19. Nc3 {[%clk 0:01:27]}  Kh8 {[%clk 0:02:01]} 20. Ng5 {[%clk 0:01:26]}  Bxg5 {[%clk 0:01:55]} 21. Qxg5 {[%clk 0:01:26]}  h6 {[%clk 0:01:55]} 22. Qe3 {[%clk 0:01:25]}  Rf8 {[%clk 0:01:55]} 23. Ne4 {[%clk 0:01:22]}  Qf5 {[%clk 0:01:50]} 24. Rac1 {[%clk 0:01:13]}  b6 {[%clk 0:01:40]} 25. Rc3 {[%clk 0:01:06]}  Qh5 {[%clk 0:01:37]} 26. a3 {[%clk 0:00:54]}  Rf7 {[%clk 0:01:36]} 27. Rcc1 {[%clk 0:00:47]}  Rbf8 {[%clk 0:01:36]} 28. Qd2 {[%clk 0:00:39]}  Bf3 {[%clk 0:01:33]} 29. Re3 {[%clk 0:00:38]}  Bxg2 {[%clk 0:00:53]} 30. Kxg2 {[%clk 0:00:39]}  Nc5 {[%clk 0:00:44]} 31. Nxc5 {[%clk 0:00:20]}  bxc5 {[%clk 0:00:45]} 32. Rf1 {[%clk 0:00:18]}  Qg4 {[%clk 0:00:42]} 33. Qd3 {[%clk 0:00:17]}  Rf4 {[%clk 0:00:37]} 34. b3 {[%clk 0:00:14]}  Rd4 {[%clk 0:00:34]} 35. Qc2 {[%clk 0:00:11]}  h5 {[%clk 0:00:29]} 36. h3 {[%clk 0:00:11]}  Qg5 {[%clk 0:00:30]} 37. Qe2 {[%clk 0:00:08]}  h4 {[%clk 0:00:28]} 38. a4 {[%clk 0:00:08]}  Rf6 {[%clk 0:00:18]} 39. Kh1 {[%clk 0:00:08]}  Qf5 {[%clk 0:00:17]} 40. g4 {[%clk 0:00:05]}  Qf4 {[%clk 0:00:17]} 41. Rg1 {[%clk 0:00:04]}  Qxf2 {[%clk 0:00:17]} 42. Qxf2 {[%clk 0:00:04]}  Rxf2 {[%clk 0:00:18]} 43. g5 {[%clk 0:00:04]}  Rdd2 {[%clk 0:00:17]} 44. Rc1 {[%clk 0:00:01]}  Rh2+ {[%clk 0:00:16]} 45. Kg1 {[%clk 0:00:02]}  Rdg2+ {[%clk 0:00:16]} 46. Kf1 {[%clk 0:00:02]}  Rxg5 {[%clk 0:00:17]} 47. Rf3 {[%clk 0:00:03]}  Rh1+ {[%clk 0:00:16]} 48. Ke2 {[%clk 0:00:03]}  Rxc1 {[%clk 0:00:17]} 49. Rf8+ {[%clk 0:00:03]}  Kh7 {[%clk 0:00:17]} 0-1


[Site "https://www.chess.com"]

[Event "Titled Tuesday Blitz July 25 Early 2023"]
[White "K2JW"]
[Black "Ladan, Nicholas"]
[BlackFideId "30918855"]
[WhiteElo "2344"]
[BlackElo "2460"]
[Result "1-0"]
[Round "6"]
[TimeControl "180+2"]
[Date "2023.07.25"]
[WhiteClock "0:00:17"]
[BlackClock "0:00:08"]
[Board "156"]

1. d4 {[%clk 0:03:00]}  b6 {[%clk 0:02:58]} 2. e4 {[%clk 0:03:00]}  Bb7 {[%clk 0:02:57]} 3. Bd3 {[%clk 0:03:01]}  f5 {[%clk 0:02:57]} 4. exf5 {[%clk 0:03:01]}  Bxg2 {[%clk 0:02:57]} 5. Qh5+ {[%clk 0:02:57]}  g6 {[%clk 0:02:57]} 6. fxg6 {[%clk 0:02:57]}  Bg7 {[%clk 0:02:58]} 7. gxh7+ {[%clk 0:02:55]}  Kf8 {[%clk 0:02:58]} 8. Nf3 {[%clk 0:02:55]}  Nf6 {[%clk 0:02:49]} 9. Qg6 {[%clk 0:02:08]}  Bxf3 {[%clk 0:02:35]} 10. Rg1 {[%clk 0:02:05]}  Rxh7 {[%clk 0:02:32]} 11. Qg3 {[%clk 0:02:00]}  Be4 {[%clk 0:01:49]} 12. Bxe4 {[%clk 0:01:59]}  Nxe4 {[%clk 0:01:50]} 13. Qf3+ {[%clk 0:02:00]}  Kg8 {[%clk 0:01:48]} 14. Qxe4 {[%clk 0:01:58]}  Nc6 {[%clk 0:01:46]} 15. d5 {[%clk 0:01:51]}  Nd4 {[%clk 0:01:41]} 16. Qxd4 {[%clk 0:01:50]}  Qf8 {[%clk 0:01:28]} 17. Qf4 {[%clk 0:01:28]}  Qc8 {[%clk 0:01:11]} 18. Be3 {[%clk 0:01:23]}  Qa6 {[%clk 0:01:09]} 19. Nd2 {[%clk 0:00:58]}  Rf8 {[%clk 0:01:07]} 20. Qc4 {[%clk 0:00:58]}  Qa5 {[%clk 0:00:54]} 21. O-O-O {[%clk 0:00:54]}  b5 {[%clk 0:00:34]} 22. Qb3 {[%clk 0:00:50]}  d6 {[%clk 0:00:25]} 23. Bd4 {[%clk 0:00:48]}  Rf7 {[%clk 0:00:21]} 24. Bxg7 {[%clk 0:00:42]}  Rhxg7 {[%clk 0:00:22]} 25. Rxg7+ {[%clk 0:00:41]}  Rxg7 {[%clk 0:00:22]} 26. a3 {[%clk 0:00:35]}  Kf7 {[%clk 0:00:21]} 27. Qe3 {[%clk 0:00:34]}  Ke8 {[%clk 0:00:21]} 28. Nb3 {[%clk 0:00:32]}  Qb6 {[%clk 0:00:20]} 29. Qxb6 {[%clk 0:00:27]}  axb6 {[%clk 0:00:21]} 30. Nd4 {[%clk 0:00:24]}  Rg2 {[%clk 0:00:20]} 31. f4 {[%clk 0:00:23]}  Rxh2 {[%clk 0:00:20]} 32. Re1 {[%clk 0:00:24]}  Rh4 {[%clk 0:00:20]} 33. Nc6 {[%clk 0:00:23]}  e5 {[%clk 0:00:17]} 34. fxe5 {[%clk 0:00:23]}  dxe5 {[%clk 0:00:17]} 35. Rxe5+ {[%clk 0:00:24]}  Kd7 {[%clk 0:00:17]} 36. Nb4 {[%clk 0:00:19]}  Kd6 {[%clk 0:00:16]} 37. Re2 {[%clk 0:00:19]}  Kc5 {[%clk 0:00:14]} 38. Kd2 {[%clk 0:00:18]}  Kc4 {[%clk 0:00:14]} 39. b3+ {[%clk 0:00:17]}  Kc5 {[%clk 0:00:14]} 40. Re6 {[%clk 0:00:17]}  Kd4 {[%clk 0:00:12]} 41. c3+ {[%clk 0:00:16]}  Kc5 {[%clk 0:00:08]} 42. Rc6# {[%clk 0:00:17]} 1-0


[Site "https://www.chess.com"]

[Event "Titled Tuesday Blitz July 25 Early 2023"]
[White "Pasti, Aron"]
[Black "Buscar, Michael"]
[WhiteFideId "785857"]
[BlackFideId "2603616"]
[WhiteElo "2457"]
[BlackElo "2338"]
[Result "1-0"]
[Round "6"]
[TimeControl "180+2"]
[Date "2023.07.25"]
[WhiteClock "0:00:10"]
[BlackClock "0:00:11"]
[Board "157"]

1. e4 {[%clk 0:03:00]}  c5 {[%clk 0:02:59]} 2. d4 {[%clk 0:03:00]}  cxd4 {[%clk 0:02:57]} 3. c3 {[%clk 0:03:00]}  Nf6 {[%clk 0:02:56]} 4. e5 {[%clk 0:03:00]}  Nd5 {[%clk 0:02:55]} 5. cxd4 {[%clk 0:03:01]}  Nc6 {[%clk 0:02:54]} 6. Nc3 {[%clk 0:03:00]}  Nxc3 {[%clk 0:02:52]} 7. bxc3 {[%clk 0:03:01]}  d5 {[%clk 0:02:52]} 8. Nf3 {[%clk 0:02:59]}  Bg4 {[%clk 0:02:51]} 9. Be2 {[%clk 0:02:58]}  e6 {[%clk 0:02:50]} 10. Rb1 {[%clk 0:02:56]}  Qc7 {[%clk 0:02:41]} 11. O-O {[%clk 0:02:45]}  Be7 {[%clk 0:02:39]} 12. Qb3 {[%clk 0:02:44]}  Rb8 {[%clk 0:02:34]} 13. Ba3 {[%clk 0:02:42]}  O-O {[%clk 0:02:27]} 14. Bxe7 {[%clk 0:02:39]}  Nxe7 {[%clk 0:02:26]} 15. Qc2 {[%clk 0:02:28]}  Rfc8 {[%clk 0:02:18]} 16. Rfc1 {[%clk 0:02:23]}  Bxf3 {[%clk 0:02:11]} 17. Bxf3 {[%clk 0:02:22]}  Nf5 {[%clk 0:02:11]} 18. Qd3 {[%clk 0:02:05]}  Qa5 {[%clk 0:02:09]} 19. Rb5 {[%clk 0:01:49]}  Qxa2 {[%clk 0:02:04]} 20. Bxd5 {[%clk 0:01:46]}  Qa3 {[%clk 0:01:56]} 21. Rf1 {[%clk 0:00:56]}  Rxc3 {[%clk 0:01:50]} 22. Qe4 {[%clk 0:00:52]}  Nxd4 {[%clk 0:01:42]} 23. Qxd4 {[%clk 0:00:45]}  Rd3 {[%clk 0:01:40]} 24. Qc4 {[%clk 0:00:41]}  exd5 {[%clk 0:01:37]} 25. Qc7 {[%clk 0:00:37]}  Qf8 {[%clk 0:01:24]} 26. Rxb7 {[%clk 0:00:36]}  Rxb7 {[%clk 0:01:19]} 27. Qxb7 {[%clk 0:00:37]}  a5 {[%clk 0:01:19]} 28. Qb5 {[%clk 0:00:36]}  Qa3 {[%clk 0:00:49]} 29. Qb8+ {[%clk 0:00:33]}  Qf8 {[%clk 0:00:48]} 30. Qb5 {[%clk 0:00:31]}  Qa3 {[%clk 0:00:48]} 31. Re1 {[%clk 0:00:23]}  Qb4 {[%clk 0:00:39]} 32. Qe8+ {[%clk 0:00:20]}  Qf8 {[%clk 0:00:37]} 33. Qb5 {[%clk 0:00:20]}  Qb4 {[%clk 0:00:37]} 34. Qe8+ {[%clk 0:00:17]}  Qf8 {[%clk 0:00:35]} 35. Qc6 {[%clk 0:00:17]}  h6 {[%clk 0:00:31]} 36. e6 {[%clk 0:00:15]}  fxe6 {[%clk 0:00:30]} 37. Qxe6+ {[%clk 0:00:16]}  Kh7 {[%clk 0:00:25]} 38. Qa6 {[%clk 0:00:12]}  Qb4 {[%clk 0:00:24]} 39. Qxd3+ {[%clk 0:00:12]}  Kg8 {[%clk 0:00:22]} 40. Re8+ {[%clk 0:00:12]}  Kf7 {[%clk 0:00:22]} 41. Qe2 {[%clk 0:00:09]}  Qb1+ {[%clk 0:00:11]} 42. Qe1 {[%clk 0:00:10]} 1-0


[Site "https://www.chess.com"]